[Event "Commonwealth Open 2019"]
[Site "Delhi"]
[Date "2019.07.01"]
[Round "3.11"]
[White "Debashis, Das"]
[Black "Oatlhotse, Providence"]
[Result "1-0"]
[ECO "B90"]
[WhiteElo "2544"]
[BlackElo "2244"]
[Annotator "ChessBase"]
[PlyCount "75"]
[EventDate "2019.06.30"]
[EventType "swiss"]
[EventCountry "IND"]
[SourceTitle "playchess.com"]
[Source "ChessBase"]
[SourceQuality "1"]
[TimeControl "5400+30"]

1. e4 c5 {[%emt 0:03:38]} 2. Nf3 {[%emt 0:00:00]} d6 {[%emt 0:00:06]} 3. d4 {[%emt 0:00:00]} cxd4 {[%emt 0:00:05]} 4. Nxd4 {[%emt 0:00:00]} Nf6 {[%emt 0:00:01]} 5. Nc3 {[%emt 0:00:00]} a6 {[%emt 0:00:08]} 6. Be3 {[%emt 0:00:18]} e5 {[%emt 0:00:06]} 7. Nb3 {[%emt 0:00:11]} Be6 {[%emt 0:00:03]} 8. f3 {[%emt 0:00:56]} h5 {[%emt 0:00:22]} 9. Qd2 {[%emt 0:00:31]} Nbd7 {[%emt 0:00:09]} 10. O-O-O {[%emt 0:00:26]} Qc7 {[%emt 0:00:16]} 11. Kb1 {[%emt 0:02:59]} Be7 {[%emt 0:00:26]} 12. h3 {[%emt 0:00:38]} h4 {[%emt 0:03:10]} 13. f4 {[%emt 0:00:34]} O-O {[%emt 0:06:01]} 14. f5 {[%emt 0:12:33]} Bc4 {[%emt 0:03:33]} 15. g4 {[%emt 0:06:14]} hxg3 {[%emt 0:01:37]} 16. Rg1 {[%emt 0:00:39]} Bxf1 {[%emt 0:00:41]} 17. Rdxf1 Qc4 {[%emt 0:00:03]} 18. Bh6 {[%emt 0:07:48]} Nh5 {[%emt 0:08:29]} 19. Qd1 {[%emt 0:21:04]} Ndf6 {[%emt 0:04:59]} 20. Bg5 {[%emt 0:00:13]} Rfd8 {[%emt 0:32:44]} 21. Nd2 {[%emt 0:03:14]} Qc5 {[%emt 0:16:20]} 22. Bxf6 {[%emt 0:02:20]} Nxf6 {[%emt 0:00:05]} 23. Rxg3 {[%emt 0:00:15]} d5 {[%emt 0:00:44]} 24. Rfg1 {[%emt 0:04:21]} Bf8 {[%emt 0:04:45]} 25. exd5 {[%emt 0:00:45]} Nxd5 {[%emt 0:00:46]} 26. Nce4 {[%emt 0:05:10]} Qe7 {[%emt 0:01:13]} 27. Qf3 {[%emt 0:11:53]} f6 {[%emt 0:00:40]} 28. Rg6 {[%emt 0:01:26]} b5 {[%emt 0:00:45]} 29. h4 {[%emt 0:01:28]} Rac8 {[%emt 0:04:28]} 30. h5 {[%emt 0:00:10]} Qc7 {[%emt 0:02:48]} 31. Qb3 {[%emt 0:02:59]} Kh7 {[%emt 0:02:42]} 32. h6 {[%emt 0:00:06]} Qxc2+ {[%emt 0:03:29]} 33. Qxc2 {[%emt 0:00:07]} Rxc2 {[%emt 0:00:01]} 34. hxg7 {[%emt 0:00:37]} Bxg7 {[%emt 0:00:49]} 35. Rxg7+ {[%emt 0:00:05]} Kh8 {[%emt 0:00:03]} 36. Kxc2 {[%emt 0:00:13]} Ne3+ {[%emt 0:00:05]} 37. Kb1 {[%emt 0:00:04]} Nxf5 {[%emt 0:00:04]} 38. R7g6 {[%emt 0:00:12]} 1-0

[Event "Commonwealth Open 2019"]
[Site "Delhi"]
[Date "2019.07.01"]
[Round "3.12"]
[White "Shyaamnikhil, P."]
[Black "Jubin Jimmy"]
[Result "1-0"]
[ECO "B15"]
[WhiteElo "2434"]
[BlackElo "2219"]
[Annotator "NA"]
[PlyCount "161"]
[EventDate "2019.06.30"]
[EventType "swiss"]
[EventCountry "IND"]
[SourceTitle "playchess.com"]
[Source "ChessBase"]
[SourceQuality "1"]
[TimeControl "5400+30"]

1. e4 {[%emt 0:00:00]} c6 {[%emt 0:00:00]} 2. d4 {[%emt 0:01:11]} d5 {[%emt 0:00:00]} 3. Nd2 {[%emt 0:00:04]} dxe4 {[%emt 0:00:12]} 4. Nxe4 {[%emt 0:00:05]} g6 {[%emt 0:00:08]} 5. Nf3 {[%emt 0:01:40]} Bg7 {[%emt 0:00:06]} 6. h3 {[%emt 0:01:04]} Nf6 {[%emt 0:01:00]} 7. Nxf6+ {[%emt 0:01:31]} exf6 {[%emt 0:00:15]} 8. Bc4 {[%emt 0:00:36]} O-O {[%emt 0:01:10]} 9. O-O {[%emt 0:00:05]} a5 {[%emt 0:00:10] B15: Caro-Kann: 3 Nc3: 3...g6 and 3...dxe4 4 Nxe4 Nf6 5 Nxf6+ exf6} 10. a4 {[%emt 0:00:14]} Na6 {[%emt 0:00:33]} 11. Re1 {[%emt 0:00:45]} Nc7 {[%emt 0:00:34]} 12. Bf4 Nd5 {[%emt 0:00:06]} 13. Bh2 {[%emt 0:04:21]} Be6 {[%emt 0:00:07]} 14. Bb3 {[%emt 0:00:04]} Re8 {[%emt 0:02:16]} 15. Nd2 {[%emt 0:02:17]} f5 {[%emt 0:05:04]} 16. Nc4 {[%emt 0:02:32] [#]} Bf8 $146 {[%emt 0:02:39]} ({Predecessor:} 16... f4 17. c3 {0-1 (42) Lu,S (2630)-Wei,Y (2734) Tianjin 2018}) 17. Ne5 {[%emt 0:01:52]} Nf6 {[%emt 0:03:00]} 18. c3 {[%emt 0:03:02]} Qb6 {[%emt 0:11:00]} 19. Bxe6 {[%emt 0:01:10]} Rxe6 {[%emt 0:03:10]} 20. Qc2 {[%emt 0:01:58]} Rae8 {[%emt 0:02:30]} 21. Nd3 {[%emt 0:00:09]} Nd5 {[%emt 0:01:36]} 22. Rxe6 {[%emt 0:00:36]} Rxe6 {[%emt 0:00:03]} 23. Rd1 {[%emt 0:03:33]} Re8 {[%emt 0:06:12]} 24. Be5 {[%emt 0:07:14]} h5 $11 {[%emt 0:07:04]} 25. Bf4 {[%emt 0:04:51]} Re4 {[%emt 0:04:06]} 26. Bd2 {[%emt 0:01:38]} Qa6 {[%emt 0:04:46]} 27. Re1 {[%emt 0:04:22]} Rxe1+ {[%emt 0:07:19]} 28. Bxe1 {[%emt 0:00:13]} b5 {[%emt 0:07:33]} 29. axb5 {[%emt 0:00:49]} cxb5 {[%emt 0:00:07]} 30. Qb3 {[%emt 0:00:06]} b4 {[%emt 0:02:25]} 31. cxb4 {[%emt 0:03:13]} axb4 {[%emt 0:02:34]} 32. Bd2 {[%emt 0:06:20]} Qe6 {[%emt 0:04:59]} 33. Nc5 {[%emt 0:03:35]} Bxc5 {[%emt 0:03:42]} 34. dxc5 {[%emt 0:00:06]} Qe4 {[%emt 0:01:00]} 35. c6 {[%emt 0:00:42]} h4 {[%emt 0:02:01]} 36. c7 {[%emt 0:06:40]} Nxc7 {[%emt 0:00:11]} 37. Qxb4 {[%emt 0:00:10]} Qd5 {[%emt 0:13:05]} 38. Bc3 {[%emt 0:00:55]} Nb5 {[%emt 0:01:23]} 39. Qxh4 {[%emt 0:07:39]} Nxc3 {[%emt 0:00:49]} 40. bxc3 {[%emt 0:00:09]} Qd1+ {[%emt 0:00:30]} 41. Kh2 {[%emt 0:00:06]} Qd6+ {[%emt 0:00:25]} 42. g3 {[%emt 0:00:06]} Qb6 {[%emt 0:02:01]} 43. Qd4 {[%emt 0:00:11]} Qb2 {[%emt 0:00:03]} 44. h4 {[%emt 0:00:18]} Kh7 {[%emt 0:00:13]} 45. Qc5 {[%emt 0:00:19]} Qd2 {[%emt 0:00:40]} 46. Kg2 {[%emt 0:00:30]} Qe2 {[%emt 0:01:05]} 47. Qd5 {[%emt 0:01:21]} Kg8 {[%emt 0:00:55]} 48. Qd4 {[%emt 0:00:13]} Qb2 {[%emt 0:00:06]} 49. Qd8+ {[%emt 0:00:18]} Kg7 {[%emt 0:00:36]} 50. Qd3 {[%emt 0:01:21]} Qb7+ {[%emt 0:00:13]} 51. Kh2 {[%emt 0:00:08]} Qb2 {[%emt 0:00:07]} 52. Qe3 {[%emt 0:00:16]} Qc2 {[%emt 0:00:44]} 53. Qd4+ {[%emt 0:00:12]} Kh7 {[%emt 0:00:43]} 54. c4 {[%emt 0:00:07]} Kg8 {[%emt 0:01:29]} 55. c5 {[%emt 0:01:00]} f4 {[%emt 0:00:04]} 56. gxf4 {[%emt 0:00:10]} Kh7 {[%emt 0:00:34]} 57. Kg2 {[%emt 0:07:35]} Qe2 {[%emt 0:00:05]} 58. Qe3 {[%emt 0:01:50]} Qc2 {[%emt 0:00:23]} 59. Qe5 {[%emt 0:00:24]} Qd1 {[%emt 0:00:36]} 60. Qg5 {[%emt 0:00:26]} Qd3 {[%emt 0:00:52]} 61. h5 {[%emt 0:01:43]} Qe4+ {[%emt 0:00:06]} 62. Kh2 {[%emt 0:00:04]} Qc2 {[%emt 0:00:42]} 63. hxg6+ {[%emt 0:00:10]} fxg6 {[%emt 0:00:02]} 64. Qe7+ {[%emt 0:00:22]} Kg8 {[%emt 0:00:48]} 65. Kg3 {[%emt 0:01:24]} Qd3+ {[%emt 0:00:13]} 66. Qe3 {[%emt 0:02:31]} Qd1 {[%emt 0:01:06]} 67. Qf3 {[%emt 0:03:32]} Qg1+ {[%emt 0:00:35]} 68. Qg2 {[%emt 0:00:09]} Qc1 {[%emt 0:00:07]} 69. Qd5+ {[%emt 0:02:24]} Kg7 {[%emt 0:00:19]} 70. Qd4+ {[%emt 0:00:15]} Kh7 {[%emt 0:00:11]} 71. Kg2 {[%emt 0:00:07]} Qc2 {[%emt 0:01:50]} 72. Qd7+ {[%emt 0:00:09]} Kh6 {[%emt 0:00:24]} 73. c6 {[%emt 0:00:22]} Qe4+ {[%emt 0:00:12]} 74. Kg3 {[%emt 0:00:06]} Qe1 {[%emt 0:00:10]} 75. Qd5 {[%emt 0:02:07]} Qg1+ {[%emt 0:00:19]} 76. Qg2 {[%emt 0:00:04]} Qc1 {[%emt 0:00:05]} 77. Qf3 {[%emt 0:02:32]} Qg1+ {[%emt 0:00:26]} 78. Kh3 {[%emt 0:00:05]} Qc1 {[%emt 0:00:21]} 79. Kg2 {[%emt 0:01:02]} Qc4 {[%emt 0:00:34]} 80. Qh3+ {[%emt 0:00:43]} Kg7 {[%emt 0:00:01]} 81. Qd7+ {[%emt 0:00:14]} 1-0

[Event "Commonwealth Open 2019"]
[Site "Delhi"]
[Date "2019.07.01"]
[Round "3.13"]
[White "Joshi, Govind Ballabh"]
[Black "Divya, Deshmukh"]
[Result "1/2-1/2"]
[ECO "B52"]
[WhiteElo "2101"]
[BlackElo "2414"]
[Annotator "NA"]
[PlyCount "128"]
[EventDate "2019.06.30"]
[EventType "swiss"]
[EventCountry "IND"]
[SourceTitle "playchess.com"]
[Source "ChessBase"]
[SourceQuality "1"]
[TimeControl "5400+30"]

1. e4 {[%emt 0:00:00]} c5 {[%emt 0:00:00]} 2. Nf3 {[%emt 0:00:00]} d6 {[%emt 0:00:00]} 3. Bb5+ {[%emt 0:00:43]} Bd7 {[%emt 0:00:00]} 4. Bxd7+ {[%emt 0:01:02]} Qxd7 {[%emt 0:00:00]} 5. c4 {[%emt 0:00:43]} g6 {[%emt 0:00:59]} 6. Nc3 {[%emt 0:00:44]} Bg7 {[%emt 0:00:04]} 7. d4 {[%emt 0:00:06]} cxd4 {[%emt 0:00:06]} 8. Nxd4 {[%emt 0:00:06]} Nf6 {[%emt 0:00:07]} 9. b3 {[%emt 0:02:06]} Nc6 {[%emt 0:02:58]} 10. Bb2 {[%emt 0:00:05]} O-O {[%emt 0:00:49]} 11. O-O {[%emt 0:00:09]} Rfd8 {[%emt 0:03:55]} 12. Re1 {[%emt 0:06:32]} Nxd4 {[%emt 0:06:59]} 13. Qxd4 {[%emt 0:00:21]} Ng4 {[%emt 0:03:56]} 14. Qd2 {[%emt 0:01:28]} Ne5 {[%emt 0:02:33]} 15. h3 {[%emt 0:12:15]} Rac8 {[%emt 0:07:01]} 16. Rad1 {[%emt 0:01:54]} Qe8 {[%emt 0:07:15]} 17. f4 {[%emt 0:11:06]} Nc6 {[%emt 0:10:47]} 18. Nd5 $14 {[%emt 0:00:53]} Qf8 {[%emt 0:01:50]} 19. Re2 {[%emt 0:05:37]} e6 {[%emt 0:03:38]} 20. Ne3 {[%emt 0:16:39]} a6 {[%emt 0:02:52]} 21. Bxg7 {[%emt 0:04:44]} Qxg7 {[%emt 0:00:29]} 22. Qb2 {[%emt 0:00:16]} e5 {[%emt 0:01:06]} 23. f5 {[%emt 0:03:26]} Nd4 {[%emt 0:00:40]} 24. Rf2 {[%emt 0:01:37]} Kh8 {[%emt 0:01:30]} 25. Rdf1 {[%emt 0:10:50]} g5 {[%emt 0:07:38]} 26. f6 {[%emt 0:05:36]} Qg6 {[%emt 0:00:35]} 27. Nf5 {[%emt 0:00:55]} Nxf5 {[%emt 0:00:06]} 28. Rxf5 {[%emt 0:00:01]} b5 {[%emt 0:00:36]} 29. Qd2 {[%emt 0:02:01]} h6 {[%emt 0:00:39]} 30. Rc1 {[%emt 0:01:11]} Kh7 {[%emt 0:04:53]} 31. cxb5 Rxc1+ {[%emt 0:00:11]} 32. Qxc1 {[%emt 0:02:28]} axb5 {[%emt 0:00:04]} 33. Qc6 {[%emt 0:03:42]} g4 {[%emt 0:03:04]} 34. hxg4 {[%emt 0:02:32]} Qxg4 {[%emt 0:00:13]} 35. Qd5 {[%emt 0:00:29]} Kg6 {[%emt 0:07:02]} 36. Rf3 {[%emt 0:01:18]} Rc8 {[%emt 0:02:28]} 37. Qd2 {[%emt 0:02:00]} Qg5 {[%emt 0:02:14]} 38. Qf2 {[%emt 0:01:39]} Kh7 {[%emt 0:00:43]} 39. Rd3 {[%emt 0:00:43]} Rc1+ {[%emt 0:02:53]} 40. Kh2 {[%emt 0:00:01]} b4 {[%emt 0:00:05]} 41. Qf5+ {[%emt 0:01:16]} Qxf5 {[%emt 0:00:35]} 42. exf5 {[%emt 0:00:02]} Rf1 {[%emt 0:01:04]} 43. Rxd6 {[%emt 0:00:12]} Rxf5 {[%emt 0:00:03]} 44. Rd5 {[%emt 0:00:53]} Kg6 {[%emt 0:01:44]} 45. Rb5 {[%emt 0:00:04]} Rf4 {[%emt 0:02:25]} 46. Rxe5 {[%emt 0:00:07]} Kxf6 {[%emt 0:00:02]} 47. Rb5 {[%emt 0:00:17]} Rd4 {[%emt 0:00:10]} 48. Kg3 {[%emt 0:00:23]} Kg6 {[%emt 0:00:08]} 49. Kf3 {[%emt 0:01:27]} f5 {[%emt 0:00:13]} 50. Ke3 {[%emt 0:01:00]} Re4+ {[%emt 0:00:06]} 51. Kf3 {[%emt 0:00:00]} Kg5 {[%emt 0:00:36]} 52. Rc5 {[%emt 0:00:35]} Rf4+ {[%emt 0:00:19]} 53. Kg3 {[%emt 0:00:21]} h5 {[%emt 0:02:33]} 54. Rc4 {[%emt 0:00:58]} h4+ {[%emt 0:00:34]} 55. Kh3 {[%emt 0:00:06]} Rg4 {[%emt 0:00:53]} 56. Rc8 {[%emt 0:00:10]} Rg3+ {[%emt 0:00:57]} 57. Kh2 {[%emt 0:00:07]} Re3 {[%emt 0:00:07]} 58. Rg8+ {[%emt 0:00:33]} Kf4 {[%emt 0:00:19]} 59. Rh8 {[%emt 0:00:03]} Kg5 {[%emt 0:00:31]} 60. Rg8+ {[%emt 0:00:00]} Kf6 {[%emt 0:00:02]} 61. Rh8 {[%emt 0:00:08]} Re4 {[%emt 0:02:10]} 62. Kh3 {[%emt 0:00:11]} Kg5 {[%emt 0:01:08]} 63. Rg8+ {[%emt 0:00:01]} Kh5 {[%emt 0:02:58]} 64. Rh8+ {[%emt 0:00:02]} Kg5 {[%emt 0:00:36]} 1/2-1/2

[Event "Commonwealth Open 2019"]
[Site "Delhi"]
[Date "2019.07.01"]
[Round "3.14"]
[White "Kumar, Gaurav"]
[Black "Tania, Sachdev"]
[Result "0-1"]
[ECO "C45"]
[WhiteElo "2110"]
[BlackElo "2401"]
[Annotator "NA"]
[PlyCount "126"]
[EventDate "2019.06.30"]
[EventType "swiss"]
[EventCountry "IND"]
[SourceTitle "playchess.com"]
[Source "ChessBase"]
[SourceQuality "1"]
[TimeControl "5400+30"]

1. e4 {[%emt 0:00:00]} e5 {[%emt 0:00:26]} 2. Nf3 {[%emt 0:00:00]} Nc6 {[%emt 0:00:02]} 3. d4 {[%emt 0:00:24]} exd4 {[%emt 0:00:33]} 4. Nxd4 {[%emt 0:00:03]} Nf6 {[%emt 0:00:05]} 5. Nxc6 {[%emt 0:00:06]} bxc6 {[%emt 0:00:02]} 6. e5 {[%emt 0:00:07]} Qe7 {[%emt 0:00:04]} 7. Qe2 {[%emt 0:00:05]} Nd5 {[%emt 0:00:03]} 8. c4 {[%emt 0:00:05]} Ba6 {[%emt 0:00:21]} 9. Nd2 {[%emt 0:00:03]} O-O-O {[%emt 0:00:44]} 10. Qe4 {[%emt 0:08:16]} Nb6 {[%emt 0:01:55] C45: Scotch Game} 11. c5 {[%emt 0:03:49]} Bxf1 {[%emt 0:00:05]} 12. cxb6 {[%emt 0:00:08]} Ba6 {[%emt 0:00:07]} 13. bxc7 {[%emt 0:12:01]} (13. bxa7 Kb7 14. Nb3 f6 15. Be3 Qb4+ 16. Qxb4+ Bxb4+ 17. Kd1 fxe5 18. a3 {0-1 (38) Plat,V (2458)-Zilka,S (2508) Olomouc 2015}) 13... Kxc7 $146 {[%emt 0:08:47]} ({Predecessor:} 13... Re8 14. f4 Qb4 15. Qxb4 Bxb4 16. a3 Ba5 17. Kf2 f6 18. Ne4 Bxc7 19. Nc5 Bc4 20. exf6 Bb6 21. Be3 d6 22. fxg7 Rhg8 23. Rac1 Bd5 {0-1 (23) Moyano Morales,F-Fernandez Aguado,J Barcelona 1984}) 14. Nf3 {[%emt 0:05:24]} Rb8 {[%emt 0:04:10]} 15. Qd4 {[%emt 0:06:25]} Qb4+ {[%emt 0:03:35]} 16. Qxb4 {[%emt 0:05:19]} Bxb4+ {[%emt 0:00:05]} 17. Kd1 {[%emt 0:00:06]} Bc5 {[%emt 0:02:55]} 18. Kc2 {[%emt 0:06:49]} Bxf2 {[%emt 0:01:22]} 19. Bf4 {[%emt 0:01:00]} (19. Rd1 $17) 19... Rb4 {[%emt 0:02:07]} 20. Bd2 {[%emt 0:00:33]} Rg4 {[%emt 0:03:35]} 21. g3 $19 {[%emt 0:00:41]} Re4 {[%emt 0:17:26]} 22. Bf4 {[%emt 0:04:37]} Re2+ {[%emt 0:12:31]} 23. Kc3 {[%emt 0:02:56]} Kd8 {[%emt 0:01:22]} 24. Rad1 {[%emt 0:02:13]} c5 {[%emt 0:04:32]} 25. Rd2 {[%emt 0:03:50]} Rxd2 {[%emt 0:00:48]} 26. Kxd2 {[%emt 0:01:01]} Ke7 {[%emt 0:07:03]} 27. Be3 {[%emt 0:08:05]} Rb8 {[%emt 0:01:19]} 28. b3 {[%emt 0:00:55]} Bxe3+ {[%emt 0:00:25]} 29. Kxe3 {[%emt 0:00:02]} Bb7 {[%emt 0:04:42]} 30. Rc1 {[%emt 0:00:13]} Bxf3 {[%emt 0:00:37]} 31. Kxf3 {[%emt 0:00:03]} Rb5 {[%emt 0:00:15]} 32. Rc3 {[%emt 0:11:01]} Ke6 {[%emt 0:02:50]} 33. a4 {[%emt 0:00:42]} Rb4 {[%emt 0:01:30]} 34. Rxc5 {[%emt 0:00:33]} Rxb3+ {[%emt 0:00:04]} 35. Kg2 {[%emt 0:00:10]} Rb2+ {[%emt 0:03:20]} 36. Kg1 {[%emt 0:02:49]} Rd2 {[%emt 0:09:09]} 37. Ra5 {[%emt 0:00:31]} g5 {[%emt 0:01:28]} 38. Rxa7 {[%emt 0:05:06]} Kxe5 {[%emt 0:00:04]} 39. Ra5+ {[%emt 0:00:06]} Rd5 {[%emt 0:03:17]} 40. Ra8 {[%emt 0:05:00]} Ke4 {[%emt 0:00:38]} 41. Rb8 Rd1+ {[%emt 0:00:40]} 42. Kf2 {[%emt 0:03:18]} Rd2+ {[%emt 0:00:04]} 43. Kg1 {[%emt 0:00:03]} d5 {[%emt 0:00:14]} 44. Rb1 {[%emt 0:01:09]} d4 {[%emt 0:03:36]} 45. Re1+ {[%emt 0:02:47]} Kd5 {[%emt 0:02:12]} 46. Rf1 {[%emt 0:00:17]} Ra2 {[%emt 0:00:35]} 47. Rxf7 {[%emt 0:00:25]} d3 {[%emt 0:00:20]} 48. Kf1 {[%emt 0:01:29]} Rxh2 {[%emt 0:01:11]} 49. Ke1 {[%emt 0:00:10]} Ke4 {[%emt 0:00:15]} 50. Re7+ {[%emt 0:01:22]} Kf3 {[%emt 0:00:13]} 51. Rd7 {[%emt 0:00:06]} Ke3 {[%emt 0:00:07]} 52. Re7+ {[%emt 0:00:05]} Kf3 {[%emt 0:00:03]} 53. Rd7 {[%emt 0:00:05]} d2+ {[%emt 0:01:26]} 54. Kd1 {[%emt 0:00:12]} Kxg3 {[%emt 0:00:42]} 55. Rxd2 {[%emt 0:04:34]} Rh1+ {[%emt 0:00:03]} 56. Kc2 {[%emt 0:00:33]} h5 {[%emt 0:00:25]} 57. Kb2 {[%emt 0:00:35]} h4 {[%emt 0:00:45]} 58. a5 {[%emt 0:00:11]} h3 {[%emt 0:01:04]} 59. a6 {[%emt 0:00:22]} h2 {[%emt 0:00:33]} 60. Rd3+ {[%emt 0:00:39]} Kg4 {[%emt 0:00:08]} 61. Rd4+ {[%emt 0:00:43]} Kh5 {[%emt 0:00:31]} 62. Rd8 {[%emt 0:00:01]} Rb1+ {[%emt 0:00:09]} 63. Ka2 {[%emt 0:00:04]} h1=Q {[%emt 0:00:28]} 0-1

[Event "Commonwealth Open 2019"]
[Site "Delhi"]
[Date "2019.07.01"]
[Round "3.15"]
[White "Narayanan.S.L"]
[Black "Parthasarathy, R."]
[Result "1-0"]
[ECO "E71"]
[WhiteElo "2603"]
[BlackElo "1988"]
[Annotator "ChessBase"]
[PlyCount "81"]
[EventDate "2019.06.30"]
[EventType "swiss"]
[EventCountry "IND"]
[SourceTitle "playchess.com"]
[Source "ChessBase"]
[SourceQuality "1"]
[TimeControl "5400+30"]

1. d4 {[%emt 0:00:00]} Nf6 {[%emt 0:02:01]} 2. c4 {[%emt 0:00:00]} g6 {[%emt 0:00:06]} 3. Nc3 {[%emt 0:00:00]} Bg7 {[%emt 0:00:35]} 4. e4 {[%emt 0:00:00]} d6 {[%emt 0:00:20]} 5. h3 {[%emt 0:00:07]} O-O {[%emt 0:00:12]} 6. Be3 {[%emt 0:00:07]} e5 {[%emt 0:00:08]} 7. d5 {[%emt 0:00:06]} Na6 {[%emt 0:00:06]} 8. Nf3 {[%emt 0:00:06]} Nc5 {[%emt 0:06:52]} 9. Nd2 {[%emt 0:00:10]} a5 {[%emt 0:00:24]} 10. g4 {[%emt 0:01:25]} c6 {[%emt 0:00:50]} 11. Be2 {[%emt 0:00:19]} Bd7 {[%emt 0:04:12]} 12. g5 {[%emt 0:03:15]} Ne8 {[%emt 0:00:33]} 13. h4 {[%emt 0:00:11]} a4 {[%emt 0:07:03]} 14. h5 {[%emt 0:05:51]} Qa5 {[%emt 0:03:51]} 15. a3 {[%emt 0:00:37]} f5 {[%emt 0:16:14]} 16. hxg6 {[%emt 0:26:50]} hxg6 {[%emt 0:00:45]} 17. Qc2 {[%emt 0:01:51]} Nc7 {[%emt 0:02:44]} 18. Bxc5 {[%emt 0:04:44]} Qxc5 {[%emt 0:05:33]} 19. Nxa4 {[%emt 0:02:07]} Qd4 {[%emt 0:17:09]} 20. Nc3 {[%emt 0:03:32]} cxd5 {[%emt 0:09:22]} 21. cxd5 {[%emt 0:09:12]} Rac8 {[%emt 0:00:34]} 22. Qd3 {[%emt 0:03:46]} Qxf2+ {[%emt 0:04:53]} 23. Kxf2 {[%emt 0:00:07]} fxe4+ {[%emt 0:00:03]} 24. Ke3 {[%emt 0:01:21]} exd3 {[%emt 0:00:08]} 25. Bxd3 {[%emt 0:00:05]} e4 {[%emt 0:07:28]} 26. Ndxe4 {[%emt 0:00:14]} Rce8 {[%emt 0:00:20]} 27. Kd2 {[%emt 0:08:58]} Bxc3+ {[%emt 0:06:24]} 28. Kxc3 {[%emt 0:02:03]} Nxd5+ {[%emt 0:01:21]} 29. Kd4 {[%emt 0:00:30]} Re5 {[%emt 0:01:22]} 30. Rh6 {[%emt 0:04:01]} Ne7 {[%emt 0:02:16]} 31. Nf6+ {[%emt 0:00:59]} Rxf6 {[%emt 0:01:09]} 32. gxf6 {[%emt 0:00:05]} Nf5+ {[%emt 0:00:18]} 33. Bxf5 {[%emt 0:00:05]} Bxf5 {[%emt 0:00:04]} 34. b4 {[%emt 0:03:21]} b5 {[%emt 0:00:36]} 35. Rc1 {[%emt 0:00:33]} Kf7 {[%emt 0:01:03]} 36. Rc6 {[%emt 0:01:01]} Re4+ {[%emt 0:00:09]} 37. Kd5 {[%emt 0:00:37]} Kxf6 {[%emt 0:00:48]} 38. Rxd6+ {[%emt 0:00:05]} Kg5 {[%emt 0:00:27]} 39. Rdxg6+ {[%emt 0:00:22]} Kf4 {[%emt 0:00:35]} 40. Rh4+ {[%emt 0:00:28]} Ke3 {[%emt 0:00:06]} 41. Rg3+ {[%emt 0:00:05]} 1-0

[Event "Commonwealth Open 2019"]
[Site "Delhi"]
[Date "2019.07.01"]
[Round "3.16"]
[White "Arya, Bhakta"]
[Black "Deepan, Chakkravarthy J."]
[Result "0-1"]
[ECO "D00"]
[WhiteElo "2050"]
[BlackElo "2557"]
[Annotator "ChessBase"]
[PlyCount "80"]
[EventDate "2019.06.30"]
[EventType "swiss"]
[EventCountry "IND"]
[SourceTitle "playchess.com"]
[Source "ChessBase"]
[SourceQuality "1"]
[TimeControl "5400+30"]

1. d4 {[%emt 0:00:00]} d5 {[%emt 0:00:00]} 2. Bf4 {[%emt 0:00:00]} Nf6 {[%emt 0:00:34]} 3. e3 {[%emt 0:00:05]} Bg4 {[%emt 0:00:21]} 4. f3 {[%emt 0:00:37]} Bc8 {[%emt 0:01:48]} 5. c4 {[%emt 0:02:51]} e6 {[%emt 0:00:03]} 6. Nc3 {[%emt 0:00:43]} Be7 {[%emt 0:02:23]} 7. Bd3 {[%emt 0:04:27]} O-O {[%emt 0:00:09]} 8. Nge2 {[%emt 0:01:26]} c5 {[%emt 0:00:10]} 9. O-O {[%emt 0:09:15]} Nc6 {[%emt 0:00:05]} 10. cxd5 {[%emt 0:01:07]} exd5 {[%emt 0:00:13]} 11. Kh1 {[%emt 0:01:53]} Be6 {[%emt 0:01:03]} 12. dxc5 {[%emt 0:02:28]} Bxc5 {[%emt 0:00:03]} 13. Nb5 {[%emt 0:00:16]} Qe7 {[%emt 0:06:47]} 14. a3 {[%emt 0:07:53]} Nh5 {[%emt 0:06:33]} 15. b4 {[%emt 0:02:29]} Nxf4 {[%emt 0:01:28]} 16. exf4 {[%emt 0:06:16]} Bb6 {[%emt 0:00:08]} 17. f5 {[%emt 0:02:37]} Bd7 {[%emt 0:00:21]} 18. Ng3 {[%emt 0:02:39]} Rad8 {[%emt 0:01:51]} 19. f4 {[%emt 0:05:31]} Bc8 {[%emt 0:10:15]} 20. Qh5 {[%emt 0:06:54]} Qf6 {[%emt 0:00:53]} 21. Qg4 {[%emt 0:14:10]} Kh8 {[%emt 0:07:58]} 22. Nh5 {[%emt 0:11:08]} Qh6 {[%emt 0:00:02]} 23. Rf3 {[%emt 0:02:45]} a6 {[%emt 0:00:06]} 24. Nc3 {[%emt 0:05:54]} Bd4 {[%emt 0:00:07]} 25. Rc1 {[%emt 0:00:39]} g6 {[%emt 0:01:40]} 26. Rh3 {[%emt 0:04:52]} gxh5 {[%emt 0:02:01]} 27. Rxh5 {[%emt 0:00:07]} Qg7 {[%emt 0:00:04]} 28. Rg5 {[%emt 0:03:38]} Qf6 {[%emt 0:05:06]} 29. Ne2 {[%emt 0:01:06]} Rg8 {[%emt 0:00:18]} 30. Qh5 {[%emt 0:00:36]} Be3 {[%emt 0:00:57]} 31. Rg6 Rg7 32. Rxg7 {[%emt 0:01:03]} Rf8 33. Rg8+ Rxg8 {[%emt 0:01:04]} 34. Rf1 {[%emt 0:00:47]} Ne7 {[%emt 0:07:33]} 35. g4 {[%emt 0:00:38]} d4 {[%emt 0:00:08]} 36. Be4 {[%emt 0:00:36]} Bd7 {[%emt 0:00:04]} 37. g5 {[%emt 0:00:32]} Bc6 {[%emt 0:01:25]} 38. gxf6 {[%emt 0:00:30]} Bxe4+ {[%emt 0:00:05]} 39. Rf3 {[%emt 0:00:06]} Nd5 {[%emt 0:00:22]} 40. h3 {[%emt 0:00:41]} Nxf6 {[%emt 0:00:44]} 0-1

[Event "Commonwealth Open 2019"]
[Site "Delhi"]
[Date "2019.07.01"]
[Round "3.17"]
[White "Iniyan, P."]
[Black "Meenal, Gupta"]
[Result "1-0"]
[ECO "B90"]
[WhiteElo "2525"]
[BlackElo "1958"]
[Annotator "ChessBase"]
[PlyCount "53"]
[EventDate "2019.06.30"]
[EventType "swiss"]
[EventCountry "IND"]
[SourceTitle "playchess.com"]
[Source "ChessBase"]
[SourceQuality "1"]
[TimeControl "5400+30"]

1. e4 c5 {[%emt 0:00:00]} 2. Nf3 {[%emt 0:05:28]} d6 {[%emt 0:00:00]} 3. d4 {[%emt 0:00:02]} cxd4 {[%emt 0:00:00]} 4. Nxd4 {[%emt 0:00:04]} Nf6 {[%emt 0:00:00]} 5. Nc3 {[%emt 0:00:05]} a6 {[%emt 0:00:00]} 6. Nb3 {[%emt 0:00:05]} b5 {[%emt 0:07:51]} 7. g4 {[%emt 0:06:22]} Bb7 {[%emt 0:00:56]} 8. Bg2 {[%emt 0:00:06]} e6 {[%emt 0:00:30]} 9. g5 {[%emt 0:00:30]} Nfd7 {[%emt 0:10:47]} 10. f4 {[%emt 0:02:57]} Nc6 {[%emt 0:02:47]} 11. h4 {[%emt 0:03:06]} Rc8 {[%emt 0:05:21]} 12. a3 {[%emt 0:17:15]} Nc5 {[%emt 0:13:25]} 13. Nd4 {[%emt 0:10:20]} Qb6 {[%emt 0:01:33]} 14. Nxc6 {[%emt 0:03:08]} Bxc6 {[%emt 0:01:30]} 15. Qd4 {[%emt 0:04:38]} Na4 {[%emt 0:04:54]} 16. Qxb6 {[%emt 0:00:27]} Nxb6 {[%emt 0:00:03]} 17. b3 {[%emt 0:00:50]} f5 {[%emt 0:07:44]} 18. gxf6 {[%emt 0:03:58]} gxf6 {[%emt 0:00:02]} 19. Bh3 {[%emt 0:06:20]} Bb7 {[%emt 0:05:09]} 20. Bb2 {[%emt 0:01:19]} Ke7 {[%emt 0:00:23]} 21. O-O-O {[%emt 0:04:17]} Bh6 {[%emt 0:00:26]} 22. Rhf1 {[%emt 0:00:06]} Rhg8 {[%emt 0:00:59]} 23. Kb1 {[%emt 0:04:43]} Rxc3 {[%emt 0:08:41]} 24. Bxc3 {[%emt 0:00:57]} Bxe4 {[%emt 0:00:07]} 25. Bb4 {[%emt 0:00:47]} Nd5 {[%emt 0:00:16]} 26. Rfe1 {[%emt 0:00:04]} f5 {[%emt 0:06:27]} 27. Bxf5 {[%emt 0:01:58]} 1-0